fUSD/lending_fUSD_20250427
["ID","MTS","AMOUNT","RATE_DAILY","PERIOD"]
[359188867,1745793046273,-7097.46681138,0.0002,2]
[359188868,1745793046389,-9381.00000002,0.0002,2]
[359188869,1745793046401,-10891.656,0.0002,2]
[359188870,1745793046453,-634.40000001,0.0002,2]
[359188871,1745793046466,-1878.938,0.0002,2]
[359188872,1745793046515,-13616.8,0.0002,2]
[359188873,1745793046527,-613.2,0.0002,2]
[359188874,1745793046634,-1325.61011003,0.0002,2]
[359188891,1745793048907,-157.95444164,0.00019899,2]
[359188892,1745793048931,-190.5825473,0.000199,2]
[359188893,1745793049585,-157.95444164,0.000199,2]
[359188894,1745793072371,587.43,0.00019,2]
[359188895,1745793094298,150.0,0.00019295,7]
[359188896,1745793096863,1000.0,0.00019296,2]
[359188902,1745793198238,1101.79,0.00017288,2]
[359188903,1745793514742,200.0,0.00019064,2]
[359188904,1745793644608,319.92,0.00041095,120]
[359188905,1745793698963,157.76,0.0004,30]
[359188906,1745793815530,250.0,0.00017,2]
[359188907,1745793816611,300.0,0.00019,2]
[359188908,1745793845124,-177.519776,0.00019347,2]
[359188909,1745793850420,-93.81055067,0.00019347,2]
[359188910,1745793999854,160.08,0.00019218,2]
[359188911,1745794039494,200.0,0.00019218,2]
[359188912,1745794057543,277.11,0.00019218,2]
[359188913,1745794132655,1000.0,0.00019145,2]
[359188920,1745794183472,1020.0,0.00032877,120]
[359188927,1745794190822,278.84152702,0.00041095,120]
[359188930,1745794212242,1466.80439579,0.00041,30]
[359188937,1745794231465,-1101.79,0.00019551,2]
[359188938,1745794231474,-145.32792128,0.00019559,2]
[359188939,1745794231511,-104.67207872,0.00019559,2]
[359188940,1745794231522,-200.0,0.00019567,2]
[359188941,1745794231532,-285.32793128,0.00019699,2]
[359188942,1745794231545,-914.67206872,0.00019699,2]
[359188943,1745794231556,-436.67226586,0.000197,2]
[359188944,1745794231567,-959.69674344,0.000197,2]
[359188945,1745794231630,-4018.92116591,0.000197,2]
[359188946,1745794231732,-1519.81907589,0.000197,2]
[359189084,1745794237464,-17535.90087967,0.000197,2]
[359189085,1745794237475,-11967.03466923,0.000197,2]
[359189086,1745794237484,-150.0,0.00019863,2]
[359189087,1745794237493,-1000.0,0.00019899,2]
[359189088,1745794237503,-425.194,0.00019899,2]
[359189089,1745794237512,-9942.94129881,0.000199,2]
[359189090,1745794237522,-947.72664984,0.000199,2]
[359189091,1745794237533,-5000.0,0.000199,2]
[359189092,1745794237543,-1219.2415,0.000199,2]
[359189093,1745794237552,-771.06184289,0.000199,2]
[359189094,1745794237562,-500.0,0.00019984,2]
[359189095,1745794237571,-564.79120947,0.00019984,2]
[359189096,1745794237581,-7074.61,0.00019985,2]
[359189097,1745794237590,-999.99,0.00019985,2]
[359189098,1745794237599,-9999.99,0.00019985,2]
[359189099,1745794237609,-9999.99,0.00019985,2]
[359189100,1745794237619,-24170.99,0.00019985,2]
[359189101,1745794237629,-9999.99,0.00019985,2]
[359189102,1745794237638,-150.99,0.00019985,2]
[359189103,1745794237650,-150.99,0.00019985,2]
[359189104,1745794237661,-538.85,0.00019985,2]
[359189105,1745794237670,-30466.4960969,0.00019986,2]
[359189106,1745794237679,-1057.7671936,0.00019986,2]
[359189107,1745794237688,-20605.4399999,0.00019986,2]
[359189108,1745794237700,-637.4506323,0.00019986,2]
[359189109,1745794237709,-180.87582516,0.00019986,2]
[359189110,1745794237719,-300.0,0.00019999,2]
[359189111,1745794237729,-400.0,0.00019999,2]
[359189112,1745794237739,-400.0,0.00019999,2]
[359189113,1745794237751,-400.0,0.00019999,2]
[359189114,1745794237761,-400.0,0.00019999,2]
[359189115,1745794237771,-400.0,0.00019999,2]
[359189116,1745794237780,-325.60143727,0.00019999,2]
[359189117,1745794237790,-400.0,0.00019999,2]
[359189119,1745794237799,-400.0,0.00019999,2]
[359189121,1745794237809,-536.38,0.00019999,2]
[359189123,1745794237819,-480.0,0.00019999,2]
[359189125,1745794237829,-480.0,0.00019999,2]
[359189127,1745794237839,-480.0,0.00019999,2]
[359189130,1745794237849,-480.0,0.00019999,2]
[359189131,1745794237859,-480.0,0.00019999,2]
[359189133,1745794237869,-480.0,0.00019999,2]
[359189135,1745794237879,-480.0,0.00019999,2]
[359189137,1745794237888,-480.0,0.00019999,2]
[359189140,1745794237898,-480.0,0.00019999,2]
[359189141,1745794237908,-417.79463812,0.00019999,2]
[359189143,1745794237919,-480.0,0.00019999,2]
[359189145,1745794237929,-480.0,0.00019999,2]
[359189147,1745794237939,-480.0,0.00019999,2]
[359189149,1745794237949,-480.0,0.00019999,2]
[359189151,1745794237959,-480.0,0.00019999,2]
[359189153,1745794237967,-370.53,0.00019999,2]
[359189155,1745794237976,-2276.24024641,0.0002,2]
[359189157,1745794237985,-414021.30772532,0.0002,2]
[359189159,1745794238001,-645.38906463,0.0002,2]
[359189247,1745794240039,-548.00952576,0.0002,2]
[359189248,1745794240135,-657.40337114,0.0002,2]
[359189249,1745794240149,-938.133,0.0002,2]
[359189259,1745794242471,-2650.86294906,0.000199,2]
[359189260,1745794242562,-1000.0,0.000199,2]
[359189261,1745794242574,-40.70922294,0.000199,2]
[359189262,1745794242583,-3260.38219075,0.0002,2]
[359189263,1745794242654,-1108.77411794,0.0002,2]
[359189264,1745794242674,-435.84438426,0.0002,2]
[359189265,1745794242685,-1621.349066,0.0002,2]
[359189266,1745794242766,-5228.12344512,0.0002,2]
[359189280,1745794245501,-376.647792,0.0002,2]
[359189281,1745794245754,-1572.0,0.0002,2]
[359189291,1745794246323,-1097.17789889,0.0002,2]
[359189292,1745794274301,991.61,0.00017509,2]
[359189293,1745794363527,150.0,0.00019344,7]
[359189294,1745794369200,1000.0,0.00041095,30]
[359189295,1745794380873,1000.0,0.00041095,30]
[359189296,1745794406219,150.0,0.00041,45]
[359189297,1745794407197,2000.0,0.00041,45]
[359189298,1745794407609,2000.0,0.0004101,45]
[359189299,1745794408198,2000.0,0.0004102,45]
[359189300,1745794408667,2105.065384,0.0004103,45]
[359189301,1745794409184,1000.0,0.00041095,30]
[359189302,1745794410894,522.907444,0.00041,45]
[359189303,1745794436965,1226.44132618,0.00041095,30]
[359189304,1745794468554,4800.0,0.00041095,30]
[359189305,1745794481845,392.47,0.00040684,60]
[359189306,1745794499019,480.0,0.00041095,30]
[359189307,1745794508269,546.69,0.00041095,30]
[359189308,1745794513160,306.59,0.00041095,120]
[359189309,1745794561030,500.0,0.00041,30]
[359189310,1745794591723,500.0,0.00041,30]
[359189311,1745794603320,500.0,0.00041,30]
[359189312,1745794613335,500.0,0.00041,30]
[359189313,1745794624202,500.0,0.00041,30]
[359189314,1745794638445,500.0,0.00041,30]
[359189315,1745794650000,603.0,0.00041,30]
[359189316,1745794674628,423.95,0.0004,30]
[359189317,1745794691361,480.0,0.00041095,30]
[359189318,1745794691613,480.0,0.00041095,30]
[359189319,1745794691839,480.0,0.00041095,30]
[359189320,1745794692088,611.58181941,0.00041095,30]
[359189321,1745794710828,655.36,0.00041095,30]
[359189322,1745794711068,655.36,0.00041095,30]
[359189323,1745794711310,655.36,0.00041095,30]
[359189324,1745794711542,655.36,0.00041095,30]
[359189325,1745794711953,655.36,0.00041095,30]
[359189326,1745794712044,655.36,0.00041095,30]
[359189327,1745794712282,655.36,0.00041095,30]
[359189328,1745794712530,655.36,0.00041095,30]
[359189329,1745794712785,655.36,0.00041095,30]
[359189330,1745794713041,655.36,0.00041095,30]
[359189331,1745794713303,655.36,0.00041095,30]
[359189332,1745794713546,655.36,0.00041095,30]
[359189333,1745794714149,655.36,0.00041095,30]
[359189334,1745794714748,655.36,0.00041095,30]
[359189335,1745794715166,655.36,0.00041095,30]
[359189336,1745794715401,655.36,0.00041095,30]
[359189337,1745794715636,655.36,0.00041095,30]
[359189338,1745794715872,655.36,0.00041095,30]
[359189339,1745794716107,655.36,0.00041095,30]
[359189340,1745794716358,655.36,0.00041095,30]
[359189341,1745794716591,655.36,0.00041095,30]
[359189342,1745794716852,655.36,0.00041095,30]
[359189343,1745794717094,655.36,0.00041095,30]
[359189344,1745794717344,655.4637142,0.00041095,30]
[359189345,1745794744326,1051.71,0.00041095,30]
[359189346,1745794744598,1051.71,0.00041095,30]
[359189347,1745794744821,1051.71,0.00041095,30]
[359189348,1745794745055,1051.71,0.00041095,30]
[359189349,1745794745666,1051.71,0.00041095,30]
[359189350,1745794745934,1051.71,0.00041095,30]
[359189351,1745794746219,1051.71,0.00041095,30]
[359189352,1745794746522,1051.71,0.00041095,30]
[359189353,1745794746787,1051.71,0.00041095,30]
[359189354,1745794747030,1051.71,0.00041095,30]
[359189355,1745794747252,1051.71,0.00041095,30]
[359189356,1745794747500,1051.71,0.00041095,30]
[359189357,1745794747730,1051.71,0.00041095,30]
[359189358,1745794747985,1051.71,0.00041095,30]
[359189359,1745794748250,1051.71,0.00041095,30]
[359189360,1745794748510,1051.71,0.00041095,30]
[359189361,1745794748756,1051.71,0.00041095,30]
[359189362,1745794748997,1051.71,0.00041095,30]
[359189363,1745794749255,1051.71,0.00041095,30]
[359189364,1745794749503,1051.71,0.00041095,30]
[359189365,1745794749878,1051.71,0.00041095,30]
[359189366,1745794750139,1051.71,0.00041095,30]
[359189367,1745794750368,1051.71,0.00041095,30]
[359189368,1745794750618,1051.9353985,0.00041095,30]
[359189369,1745794783999,300.0,0.00041095,30]
[359189370,1745794784372,300.0,0.00041095,30]
[359189371,1745794784501,300.0,0.00041095,30]
[359189372,1745794784737,300.0,0.00041095,30]
[359189373,1745794784986,300.0,0.00041095,30]
[359189374,1745794785381,300.0,0.00041095,30]
[359189375,1745794786026,300.0,0.00041095,30]
[359189376,1745794786286,300.0,0.00041095,30]
[359189377,1745794786531,300.0,0.00041095,30]
[359189378,1745794786790,300.0,0.00041095,30]
[359189379,1745794787084,300.0,0.00041095,30]
[359189380,1745794787348,300.0,0.00041095,30]
[359189381,1745794787949,300.0,0.00041095,30]
[359189382,1745794788196,217.59867862,0.00041095,30]
[359189383,1745794813176,160.271281,0.0002,5]
[359189384,1745794819387,480.0,0.00041095,30]
[359189385,1745794819443,480.0,0.00041095,30]
[359189386,1745794819669,543.3546641,0.00041095,30]
[359189387,1745794839650,480.0,0.00041095,30]
[359189388,1745794839889,480.0,0.00041095,30]
[359189389,1745794840462,480.0,0.00041095,30]
[359189390,1745794840688,480.0,0.00041095,30]
[359189391,1745794840930,480.0,0.00041095,30]
[359189392,1745794841164,480.0,0.00041095,30]
[359189393,1745794841412,480.0,0.00041095,30]
[359189394,1745794841658,480.0,0.00041095,30]
[359189395,1745794841890,480.0,0.00041095,30]
[359189396,1745794842134,480.0,0.00041095,30]
[359189397,1745794842369,480.0,0.00041095,30]
[359189398,1745794842608,480.0,0.00041095,30]
[359189399,1745794842884,480.0,0.00041095,30]
[359189400,1745794843131,480.0,0.00041095,30]
[359189401,1745794843394,480.0,0.00041095,30]
[359189402,1745794843649,480.0,0.00041095,30]
[359189403,1745794843894,480.0,0.00041095,30]
[359189404,1745794844135,480.0,0.00041095,30]
[359189405,1745794844399,480.0,0.00041095,30]
[359189406,1745794844647,477.36477594,0.00041095,30]
[359189407,1745794848627,1712.95,0.00041095,30]
[359189408,1745794849135,1712.95,0.00041095,30]
[359189409,1745794849194,1712.95,0.00041095,30]
[359189410,1745794849379,1712.95,0.00041095,30]
[359189411,1745794849626,1712.95,0.00041095,30]
[359189412,1745794849943,1712.95,0.00041095,30]
[359189413,1745794850172,1712.95,0.00041095,30]
[359189414,1745794850469,1712.95,0.00041095,30]
[359189415,1745794850701,1712.95,0.00041095,30]
[359189416,1745794850933,1712.95,0.00041095,30]
[359189417,1745794851199,1712.95,0.00041095,30]
[359189418,1745794851440,1712.95,0.00041095,30]
[359189419,1745794851680,1712.95,0.00041095,30]
[359189420,1745794851979,1712.95,0.00041095,30]
[359189421,1745794852242,1712.95,0.00041095,30]
[359189422,1745794852473,1712.95,0.00041095,30]
[359189423,1745794852722,1712.95,0.00041095,30]
[359189424,1745794853069,1712.95,0.00041095,30]
[359189425,1745794853311,1712.95,0.00041095,30]
[359189426,1745794853546,1712.95,0.00041095,30]
[359189427,1745794853785,1712.95,0.00041095,30]
[359189428,1745794854034,1712.95,0.00041095,30]
[359189429,1745794854268,1712.95,0.00041095,30]
[359189430,1745794854525,1712.98951101,0.00041095,30]
[359189431,1745794991845,2560.45799849,0.00040484,30]
[359189432,1745794993801,150.83,0.00019316,2]
[359189433,1745795000203,1623.09,0.00041095,120]
[359189434,1745795053902,-250.0,0.00019539,2]
[359189435,1745795057999,480.0,0.00041095,30]
[359189436,1745795058251,560.79402226,0.00041095,30]
[359189437,1745795062138,-200.0,0.00019588,2]
[359189438,1745795062166,-87.32886661,0.000197,2]
[359189439,1745795068729,-200.0,0.0001949,2]
[359189440,1745795072470,-200.51752667,0.0001949,2]
[359189441,1745795124979,523.91,0.00041095,30]
[359189442,1745795125230,523.91,0.00041095,30]
[359189443,1745795125553,523.91,0.00041095,30]
[359189444,1745795125805,523.91,0.00041095,30]
[359189445,1745795126069,523.91,0.00041095,30]
[359189446,1745795126394,523.91,0.00041095,30]
[359189447,1745795126827,523.91,0.00041095,30]
[359189448,1745795127249,523.91,0.00041095,30]
[359189449,1745795127340,523.91,0.00041095,30]
[359189450,1745795127582,523.91,0.00041095,30]
[359189451,1745795127828,523.91,0.00041095,30]
[359189452,1745795128083,523.91,0.00041095,30]
[359189453,1745795128329,523.91,0.00041095,30]
[359189454,1745795128927,523.91,0.00041095,30]
[359189455,1745795129188,523.91,0.00041095,30]
[359189456,1745795129434,523.91,0.00041095,30]
[359189457,1745795129714,523.91,0.00041095,30]
[359189458,1745795129961,523.91,0.00041095,30]
[359189459,1745795130222,523.91,0.00041095,30]
[359189460,1745795130455,523.91,0.00041095,30]
[359189461,1745795130784,523.91,0.00041095,30]
[359189462,1745795131037,523.91,0.00041095,30]
[359189463,1745795131320,523.91,0.00041095,30]
[359189464,1745795131566,524.0225997,0.00041095,30]
[359189465,1745795170855,480.0,0.00041095,30]
[359189466,1745795171155,261.31907352,0.00041095,30]
[359189467,1745795225547,1555.46,0.00041095,120]
[359189468,1745795228100,-151.15247333,0.00019359,2]
[359189469,1745795230936,-250.00988087,0.00019359,2]
[359189470,1745795234067,-189.12639273,0.00019359,2]
[359189471,1745795238853,-163.25159755,0.00019359,2]
[359189472,1745795245831,-203.46038963,0.00019359,2]
[359189473,1745795250665,-42.99926589,0.00019359,2]
[359189474,1745795277443,480.0,0.00041095,30]
[359189475,1745795277806,480.0,0.00041095,30]
[359189476,1745795278061,480.0,0.00041095,30]
[359189477,1745795278292,480.0,0.00041095,30]
[359189478,1745795278580,480.0,0.00041095,30]
[359189479,1745795278833,480.0,0.00041095,30]
[359189480,1745795279088,480.0,0.00041095,30]
[359189481,1745795279332,480.0,0.00041095,30]
[359189482,1745795279582,480.0,0.00041095,30]
[359189483,1745795279835,480.0,0.00041095,30]
[359189484,1745795280100,480.0,0.00041095,30]
[359189485,1745795280338,480.0,0.00041095,30]
[359189486,1745795280573,480.0,0.00041095,30]
[359189487,1745795280812,480.0,0.00041095,30]
[359189488,1745795281061,480.0,0.00041095,30]
[359189489,1745795281519,480.0,0.00041095,30]
[359189490,1745795281585,480.0,0.00041095,30]
[359189491,1745795281835,480.0,0.00041095,30]
[359189492,1745795282082,480.0,0.00041095,30]
[359189493,1745795282346,480.0,0.00041095,30]
[359189494,1745795282602,480.0,0.00041095,30]
[359189495,1745795282838,480.0,0.00041095,30]
[359189496,1745795283097,238.01727274,0.00041095,30]
[359189497,1745795286180,4000.0,0.00041,90]
[359189498,1745795298836,152.04687079,0.00041096,30]
[359189511,1745795307132,512.69,0.00041096,30]
[359189512,1745795313998,160.39282619,0.00041095,30]
[359189516,1745795333251,1354.96,0.00041095,30]
[359189517,1745795333491,1354.96,0.00041095,30]
[359189518,1745795333745,1354.96,0.00041095,30]
[359189519,1745795333997,1354.96,0.00041095,30]
[359189520,1745795334261,1354.96,0.00041095,30]
[359189521,1745795334517,1354.96,0.00041095,30]
[359189522,1745795334768,1354.96,0.00041095,30]
[359189523,1745795335380,1354.96,0.00041095,30]
[359189524,1745795335931,1354.96,0.00041095,30]
[359189525,1745795336058,1354.96,0.00041095,30]
[359189526,1745795336422,1354.96,0.00041095,30]
[359189527,1745795336658,1354.96,0.00041095,30]
[359189528,1745795336892,1354.96,0.00041095,30]
[359189529,1745795337134,1354.96,0.00041095,30]
[359189530,1745795337389,1354.96,0.00041095,30]
[359189531,1745795337628,1354.96,0.00041095,30]
[359189532,1745795337875,1354.96,0.00041095,30]
[359189533,1745795338113,1354.96,0.00041095,30]
[359189534,1745795338454,1354.96,0.00041095,30]
[359189535,1745795338712,1354.96,0.00041095,30]
[359189536,1745795338957,1354.96,0.00041095,30]
[359189537,1745795339202,1354.96,0.00041095,30]
[359189538,1745795339510,1354.96,0.00041095,30]
[359189539,1745795339757,1355.05248311,0.00041095,30]
[359189540,1745795384092,1000.0,0.00041095,30]
[359189541,1745795384156,1548.27,0.00041095,120]
[359189542,1745795384370,1000.0,0.00041095,30]
[359189543,1745795384633,1016.94890437,0.00041095,30]
[359189544,1745795390483,480.0,0.00041095,30]
[359189545,1745795390719,480.0,0.00041095,30]
[359189546,1745795390948,480.0,0.00041095,30]
[359189547,1745795391195,480.0,0.00041095,30]
[359189548,1745795391445,480.0,0.00041095,30]
[359189549,1745795391702,480.0,0.00041095,30]
[359189550,1745795391931,480.0,0.00041095,30]
[359189551,1745795392264,480.0,0.00041095,30]
[359189552,1745795392474,150.0,0.0001935,7]
[359189553,1745795392516,480.0,0.00041095,30]
[359189554,1745795392879,480.0,0.00041095,30]
[359189555,1745795393007,480.0,0.00041095,30]
[359189556,1745795393341,480.0,0.00041095,30]
[359189557,1745795393586,480.0,0.00041095,30]
[359189558,1745795393816,480.0,0.00041095,30]
[359189559,1745795394053,480.0,0.00041095,30]
[359189560,1745795394292,480.0,0.00041095,30]
[359189561,1745795394540,480.0,0.00041095,30]
[359189562,1745795394781,563.16723396,0.00041095,30]
[359189563,1745795418689,546.94562017,0.00041,30]
[359189572,1745795431610,-289.89542101,0.00019552,2]
[359189573,1745795431729,-3384.39315299,0.00019552,2]
[359189574,1745795431738,-200.0,0.00019601,2]
[359189575,1745795431748,-200.0,0.00019651,2]
[359189576,1745795431757,-1200.0,0.00019699,2]
[359189577,1745795431767,-242.4349999,0.000197,2]
[359189578,1745795431777,-885.23155818,0.000197,2]
[359189579,1745795431786,-638.35727212,0.000197,2]
[359189580,1745795431796,-300.0,0.00019772,2]
[359189581,1745795431805,-991.61,0.00019773,2]
[359189582,1745795431815,-155.9956437,0.00019799,2]
[359189583,1745795431824,-2589.2538,0.00019886,2]
[359189584,1745795431834,-772.0148,0.00019886,2]
[359189585,1745795431843,-9905.182,0.00019886,2]
[359189586,1745795431853,-340.155,0.00019899,2]
[359189587,1745795431863,-500.0,0.00019899,2]
[359189588,1745795431873,-192.99789326,0.00019899,2]
[359189589,1745795431882,-4722.6252,0.000199,2]
[359189590,1745795431892,-23419.57333436,0.000199,2]
[359189591,1745795431954,-407.0,0.00019899,2]
[359189592,1745795431966,-93.0,0.00019899,2]
[359189593,1745795431975,-187.53,0.00019899,2]
[359189594,1745795431986,-65.61026925,0.00019899,2]
[359189595,1745795431996,-500.0,0.00019899,2]
[359189596,1745795432006,-30629.18226245,0.000199,2]
[359189597,1745795432027,-2964.01934293,0.000199,2]
[359189598,1745795432036,-325.29971367,0.000199,2]
[359189599,1745795432047,-1099.79874906,0.000199,2]
[359189600,1745795432057,-745.35978147,0.000199,2]
[359189601,1745795432067,-500.0,0.00019985,2]
[359189602,1745795432076,-245.35384662,0.00019985,2]
[359189603,1745795432086,-177.59,0.00019985,2]
[359189604,1745795432095,-150.99,0.00019985,2]
[359189605,1745795432105,-155.90762285,0.00019986,2]
[359189606,1745795432121,-2264.26600868,0.00019986,2]
[359189732,1745795434437,293.82,0.00041095,120]
[359189736,1745795437695,-500.0,0.00019899,2]
[359189737,1745795437704,-500.0,0.00019899,2]
[359189738,1745795437713,-500.0,0.00019899,2]
[359189739,1745795437722,-500.0,0.00019899,2]
[359189740,1745795437731,-500.0,0.00019899,2]
[359189741,1745795437741,-562.39901178,0.00019899,2]
[359189742,1745795437763,-500.0,0.00019899,2]
[359189743,1745795437775,-226.36153987,0.00019986,2]
[359189744,1745795437786,-795.1230502,0.00019986,2]
[359189745,1745795437796,-58485.2433333,0.00019986,2]
[359189746,1745795437806,-8752.3749601,0.00019986,2]
[359189747,1745795437816,-55577.2054569,0.00019986,2]
[359189748,1745795437826,-1138.1201232,0.0002,2]
[359189749,1745795437837,-219738.13815032,0.0002,2]
[359189750,1745795437851,-6636.20403226,0.0002,2]
[359189751,1745795437867,-1942.4,0.0002,2]
[359189752,1745795437879,-5559.25206961,0.0002,2]
[359189753,1745795437923,-8916.57994639,0.0002,2]
[359189754,1745795437947,-8695.33159424,0.0002,2]
[359189755,1745795437974,-822.49017547,0.0002,2]
[359189756,1745795437986,-10050.43970292,0.0002,2]
[359189757,1745795438003,-468.40396298,0.0002,2]
[359189787,1745795439985,-469.44,0.0002,2]
[359189789,1745795439997,-1428.1854242,0.0002,2]
[359189791,1745795440009,-443.02,0.0002,2]
[359189981,1745795441878,-395252.65592864,0.0002,2]
[359189983,1745795441888,-1120984.28768873,0.0002,2]
[359189985,1745795441900,-4012.14619579,0.0002,2]
[359190008,1745795442958,-283.72256314,0.0002,2]
[359190009,1745795445916,-3377.452,0.0002,2]
[359190013,1745795452759,480.0,0.00041095,30]
[359190014,1745795453022,480.0,0.00041095,30]
[359190015,1745795453273,480.0,0.00041095,30]
[359190016,1745795453500,428.02942878,0.00041095,30]
[359190035,1745795481085,1425.83,0.00041095,120]
[359190057,1745795493799,159.1696111,0.00039041,30]
[359190058,1745795493914,159.1696111,0.00039205,30]
[359190059,1745795494036,159.1696111,0.00039342,30]
[359190060,1745795494255,159.1696111,0.00039507,30]
[359190061,1745795494374,159.1696111,0.00039671,30]
[359190062,1745795494492,159.1696111,0.00039836,30]
[359190063,1745795494605,159.1696111,0.00039973,30]
[359190064,1745795494711,159.1696111,0.00040137,30]
[359190065,1745795494821,159.1696111,0.00040301,30]
[359190066,1745795494931,159.1696111,0.00040466,30]
[359190067,1745795495046,159.1696111,0.00040603,30]
[359190068,1745795495170,159.1696111,0.00040767,30]
[359190069,1745795509857,423.86093802,0.00041095,120]
[359190071,1745795580181,401.73,0.00041095,30]
[359190072,1745795608143,500.0,0.00041095,30]
[359190073,1745795608364,500.0,0.00041095,30]
[359190074,1745795608607,500.0,0.00041095,30]
[359190075,1745795608899,545.65065236,0.00041095,30]
[359190076,1745795612165,400.0,0.00041095,30]
[359190077,1745795650443,250.0,0.00017,2]
[359190078,1745795651507,300.0,0.00019,2]
[359190079,1745795715738,1431.24,0.00041095,120]
[359190141,1745795724537,920.91,0.0001745,2]
[359190142,1745795827760,251.0,0.0004,30]
[359190143,1745795827866,251.0,0.00038,30]
[359190144,1745795836420,553.58131058,0.00040983,30]
[359190145,1745795881347,13392.938522,0.00041,30]
[359190146,1745795896134,1000.0,0.00041096,30]
[359190147,1745795904105,2000.0,0.00041095,30]
[359190148,1745795910863,2000.0,0.00041095,30]
[359190149,1745795917558,1985.0,0.00041095,120]
[359190150,1745795918604,2000.0,0.00041095,30]
[359190151,1745795928880,2000.0,0.00041095,30]
[359190152,1745795932090,1371.6,0.00041095,120]
[359190153,1745795935816,2000.0,0.00041095,30]
[359190160,1745795973833,200.0,0.00041095,30]
[359190163,1745795988579,2000.0,0.00041095,30]
[359190164,1745795988816,6979.73505638,0.00041096,30]
[359190165,1745796000079,150.84,0.00019207,2]
[359190166,1745796000378,150.84,0.0002881,120]
[359190167,1745796001745,-1912.0,0.0002,4]
[359190168,1745796010682,-150.0,0.0002,4]
[359190173,1745796032260,400.0,0.00041095,30]
[359190174,1745796036870,18000.0,0.00041096,30]
[359190175,1745796051289,400.0,0.00041095,30]
[359190176,1745796055923,283.81,0.00041096,30]
[359190177,1745796072776,400.0,0.00041095,30]
[359190178,1745796074741,400.0,0.00041095,30]
[359190179,1745796077299,400.0,0.00041095,30]
[359190180,1745796099888,416.70939091,0.00041095,30]
[359190181,1745796114084,400.0,0.00041095,30]
[359190182,1745796121197,500.0,0.0003726,60]
[359190183,1745796122748,500.0,0.00038356,60]
[359190184,1745796124300,500.0,0.00039452,60]
[359190185,1745796125875,500.0,0.00040548,60]
[359190186,1745796126416,400.0,0.00041095,30]
[359190187,1745796130163,418.95123881,0.00041095,30]
[359190189,1745796143470,413.90398376,0.00041095,30]
[359190191,1745796147393,400.0,0.00041095,30]
[359190192,1745796149239,400.0,0.00041095,30]
[359190196,1745796170222,400.0,0.00041095,30]
[359190197,1745796176089,400.0,0.00041095,30]
[359190198,1745796178657,1314.45,0.00041095,120]
[359190199,1745796182493,400.0,0.00041095,30]